bitfinex/quotes_BTCUSD_20250508
["timestamp","ask_amount","ask_price","bid_price","bid_amount"]
[1746668584383,0.33793407,97972.0,97971.0,0.00444885]
[1746668584587,0.33793407,97972.0,97971.0,0.00544885]
[1746668585036,0.33793407,97972.0,97971.0,0.00444885]
[1746668585348,0.33893407,97972.0,97971.0,0.00444885]
[1746668585643,0.33693407,97972.0,97971.0,0.00444885]
[1746668586004,0.33893407,97972.0,97971.0,0.00544885]
[1746668586212,0.34193407,97972.0,97971.0,0.00544885]
[1746668590285,0.31093407,97972.0,97971.0,0.00544885]
[1746668594918,0.34153407,97972.0,97971.0,0.00544885]
[1746668597401,0.68153407,97972.0,97971.0,0.00544885]
[1746668598396,0.67653407,97972.0,97971.0,0.00444885]
[1746668598573,0.68053407,97972.0,97971.0,0.00644885]
[1746668598732,0.68353407,97972.0,97971.0,0.00644885]
[1746668600276,0.69807492,97972.0,97971.0,0.00644885]
[1746668601667,0.69507492,97972.0,97971.0,0.00544885]
[1746668601868,0.69107492,97972.0,97971.0,0.00444885]
[1746668602109,0.69507492,97972.0,97971.0,0.00544885]
[1746668602567,0.69907492,97972.0,97971.0,0.00644885]
[1746668604746,0.68453407,97972.0,97971.0,0.00644885]
[1746668616263,0.69907492,97972.0,97971.0,0.00644885]
[1746668618791,1.40567492,97972.0,97971.0,0.00644885]
[1746668618990,1.41706457,97972.0,97971.0,0.00644885]
[1746668619287,1.44522964,97972.0,97971.0,0.00644885]
[1746668620129,1.44122964,97972.0,97971.0,0.00544885]
[1746668620341,0.57578163,97952.0,97951.0,0.004]
[1746668620538,0.57578163,97952.0,97951.0,0.00444846]
[1746668620539,0.67757575,97952.0,97951.0,0.00444846]
[1746668621849,0.68157575,97952.0,97951.0,0.00444846]
[1746668626624,0.64997575,97952.0,97951.0,0.00444846]
[1746668627062,0.30997575,97952.0,97951.0,0.00444846]
[1746668630694,0.30997575,97952.0,97951.0,0.02014846]
[1746668630837,0.30997575,97952.0,97951.0,0.03644846]
[1746668631039,0.30997575,97952.0,97951.0,0.02014846]
[1746668632440,0.30997575,97952.0,97951.0,0.00444846]
[1746668634498,0.32657575,97952.0,97951.0,0.00444846]
[1746668635416,0.34307575,97952.0,97951.0,0.00444846]
[1746668636339,0.68307575,97952.0,97951.0,0.00444846]
[1746668638767,0.34307575,97952.0,97951.0,0.00444846]
[1746668638970,0.36864317,97952.0,97951.0,0.00444846]
[1746668639192,0.34307575,97952.0,97951.0,0.00444846]
[1746668642304,0.30997575,97952.0,97951.0,0.00444846]
[1746668642713,0.30797575,97952.0,97951.0,0.00444846]
[1746668642921,0.32427575,97952.0,97951.0,0.00444846]
[1746668643237,0.32527575,97952.0,97951.0,0.00444846]
[1746668643437,0.30997575,97952.0,97951.0,0.00444846]
[1746668643649,0.31297575,97952.0,97951.0,0.00444846]
[1746668644590,0.34457575,97952.0,97951.0,0.00444846]
[1746668646661,0.20426505,97912.0,97911.0,0.34]
[1746668646903,0.20426505,97912.0,97911.0,0.34391093]
[1746668647974,0.20430978,97912.0,97911.0,0.00391093]
[1746668648374,0.20427965,97905.0,97903.0,0.34]
[1746668648571,0.20428174,97904.0,97903.0,0.34]
[1746668649317,0.20427965,97905.0,97899.0,0.06144905]
[1746668649318,0.20429009,97900.0,97899.0,0.06144905]
[1746668649748,0.20429009,97900.0,97899.0,0.09244905]
[1746668649955,0.20429009,97900.0,97899.0,0.031]
[1746668650557,0.20529009,97900.0,97899.0,0.031]
[1746668650862,0.20629009,97900.0,97899.0,0.031]
[1746668654717,0.20629009,97900.0,97899.0,0.03497165]
[1746668656483,0.20629009,97900.0,97899.0,0.01917165]
[1746668657319,0.20430052,97895.0,97894.0,0.02974085]
[1746668657535,0.20430052,97895.0,97894.0,0.04494085]
[1746668657834,0.20430052,97895.0,97894.0,0.0489125]
[1746668658055,0.17234997,97895.0,97894.0,0.0489125]
[1746668658451,0.17234997,97895.0,97894.0,0.0337125]
[1746668659001,0.17434997,97895.0,97894.0,0.0500125]
[1746668659217,0.17634997,97895.0,97894.0,0.0500125]
[1746668659613,0.004,97895.0,97894.0,0.25431511]
[1746668659821,0.004,97895.0,97894.0,0.0500125]
[1746668660216,0.004,97895.0,97894.0,0.25431511]
[1746668660620,0.004,97895.0,97894.0,0.0500125]
[1746668660822,0.004,97895.0,97894.0,0.09603537]
[1746668661020,0.004,97895.0,97894.0,0.30033798]
[1746668663884,0.004,97895.0,97894.0,0.09603537]
[1746668664083,0.004,97895.0,97894.0,0.30033798]
[1746668664294,0.004,97895.0,97894.0,0.09603537]
[1746668664501,0.004,97895.0,97894.0,0.07973537]
[1746668665154,0.20830052,97895.0,97894.0,0.09543537]
[1746668665369,0.004,97895.0,97894.0,0.07973537]
[1746668665826,0.003954,97895.0,97894.0,0.29973798]
[1746668666266,0.003954,97895.0,97894.0,0.09543537]
[1746668666832,0.20825452,97895.0,97894.0,0.09543537]
[1746668667035,0.003954,97895.0,97894.0,0.09633537]
[1746668667791,0.002,97895.0,97894.0,0.64063798]
[1746668668166,0.003,97895.0,97894.0,0.64063798]
[1746668668568,0.001,97895.0,97894.0,0.64063798]
[1746668668950,0.002,97895.0,97894.0,0.64063798]
[1746668670245,0.0102145,97900.0,97899.0,0.01454085]
[1746668670648,0.0102145,97900.0,97899.0,0.01850637]
[1746668670850,0.20428239,97904.0,97899.0,0.01850637]
[1746668671051,0.20428821,97901.0,97900.0,0.01454085]
[1746668671489,0.20428821,97901.0,97899.0,0.01454085]
[1746668671692,0.20428821,97901.0,97900.0,0.00396552]
[1746668672568,0.20528821,97901.0,97900.0,0.00496552]
[1746668672767,0.20528821,97901.0,97900.0,0.001]
[1746668672974,0.20528821,97901.0,97900.0,0.04702287]
[1746668673170,0.20528821,97901.0,97900.0,0.06272287]
[1746668673510,0.20528821,97901.0,97900.0,0.04702287]
[1746668673742,0.20528821,97901.0,97900.0,0.05098839]
[1746668673941,0.20628821,97901.0,97900.0,0.05098839]
[1746668674424,0.20528821,97901.0,97900.0,0.05098839]
[1746668674630,0.20628821,97901.0,97900.0,0.05198839]
[1746668677260,0.002,97901.0,97900.0,0.64201933]
[1746668679112,0.20422051,97934.0,97911.0,0.59140799]
[1746668679332,0.010212,97924.0,97911.0,0.59541543]
[1746668679807,0.20423826,97925.0,97911.0,0.59541543]
[1746668680008,0.21445015,97925.0,97911.0,0.59541543]
[1746668680204,0.20423869,97925.0,97911.0,0.59541543]
[1746668680422,0.21445058,97925.0,97911.0,0.59541543]
[1746668680969,0.01021168,97927.0,97911.0,0.59541543]
[1746668681376,0.01021158,97928.0,97911.0,0.59541543]
[1746668681579,0.21445051,97925.0,97911.0,0.6414383]
[1746668681778,0.00104473,97912.0,97911.0,0.6454383]
[1746668682222,4.473e-05,97912.0,97911.0,0.6424383]
[1746668682447,4.473e-05,97912.0,97911.0,0.6444383]
[1746668684177,4.473e-05,97912.0,97911.0,0.6434383]
[1746668684379,4.473e-05,97912.0,97911.0,0.6474383]
[1746668684778,0.00104473,97912.0,97911.0,0.6454383]
[1746668685138,0.00204473,97912.0,97911.0,0.6504383]
[1746668685336,0.00104473,97912.0,97911.0,0.6454383]
[1746668685737,0.00104473,97912.0,97911.0,0.6464383]
[1746668687228,4.473e-05,97912.0,97911.0,0.6414383]
[1746668687633,0.00104473,97912.0,97911.0,0.6464383]
[1746668687833,0.01021127,97931.0,97929.0,0.20422939]
[1746668688042,0.21443887,97930.0,97929.0,0.00013462]
[1746668688241,0.24493887,97930.0,97929.0,0.00013462]
[1746668688416,0.24493887,97930.0,97929.0,0.00414206]
[1746668689213,0.24493887,97930.0,97929.0,0.00614206]
[1746668689666,0.21443887,97930.0,97929.0,0.00614206]
[1746668689876,0.01021095,97934.0,97932.0,0.34]
[1746668690054,0.2144341,97934.0,97932.0,0.34]
[1746668690552,0.2144341,97934.0,97933.0,0.00350651]
[1746668690956,0.2144341,97934.0,97933.0,0.01804736]
[1746668691741,0.2144341,97934.0,97933.0,0.01904736]
[1746668691944,0.2144341,97934.0,97933.0,0.03904736]
[1746668692345,0.2144341,97934.0,97933.0,0.08607023]
[1746668696595,0.2144238,97937.0,97934.0,0.01454085]
[1746668696798,0.20421708,97935.0,97934.0,0.01454085]
[1746668697072,0.20421499,97936.0,97934.0,0.01454085]
[1746668698389,0.20421708,97935.0,97934.0,0.01454085]
[1746668698582,0.22061708,97935.0,97934.0,0.01454085]
[1746668698785,0.22061708,97935.0,97934.0,0.01854085]
[1746668699289,0.22061708,97935.0,97934.0,0.01654085]
[1746668699523,0.20427618,97935.0,97934.0,0.01854085]
[1746668699694,0.20427618,97935.0,97934.0,0.01654085]
[1746668700260,0.20427618,97935.0,97934.0,0.01854085]
[1746668700462,0.20427618,97935.0,97934.0,0.02187943]
[1746668700714,0.18867618,97935.0,97934.0,0.01854085]
[1746668700924,0.17227618,97935.0,97934.0,0.02187943]
[1746668701097,0.20422333,97932.0,97931.0,0.20890815]
[1746668701293,0.2042275,97930.0,97929.0,0.00013462]
[1746668701617,0.01021116,97932.0,97929.0,0.01034609]
[1746668701816,0.20422675,97931.0,97929.0,0.01034609]
[1746668702059,0.01021095,97934.0,97930.0,0.01021137]
[1746668702258,0.21443014,97934.0,97932.0,0.20422328]
[1746668702461,0.21443308,97933.0,97930.0,0.01021137]
[1746668702631,0.2144302,97934.0,97931.0,0.20422375]
[1746668702934,0.21443277,97933.0,97930.0,0.21443766]
[1746668703189,0.001,97931.0,97930.0,0.22897851]
[1746668703394,0.21442889,97935.0,97932.0,0.2042219]
[1746668703571,0.20421938,97934.0,97931.0,0.21643648]
[1746668703772,0.20421938,97934.0,97931.0,0.21443648]
[1746668704107,0.20420889,97939.0,97934.0,0.01021095]
[1746668704108,0.01021043,97939.0,97934.0,0.01021095]
[1746668704316,0.01021002,97943.0,97938.0,0.01021054]
[1746668704512,0.01020876,97955.0,97947.0,0.0102096]
[1746668704768,0.21438842,97954.0,97947.0,0.21440134]
[1746668704943,0.2041858,97950.0,97947.0,0.0102096]
[1746668705144,0.21439946,97948.0,97945.0,0.22017484]
[1746668705351,0.20419249,97947.0,97945.0,0.22017484]
[1746668705703,0.20419249,97947.0,97945.0,0.01454085]
[1746668706260,0.21439946,97948.0,97945.0,0.01454085]
[1746668706436,0.001,97947.0,97945.0,0.01654085]
[1746668706652,0.001,97947.0,97946.0,0.20419414]
[1746668707102,0.001,97947.0,97946.0,0.21873499]
[1746668707738,0.001,97947.0,97946.0,0.55873499]
[1746668707921,0.90824268,97981.0,97946.0,0.55873499]
[1746668707922,0.0159,97971.0,97966.0,0.01020762]
[1746668708121,0.20413572,97975.0,97968.0,0.20414829]
[1746668708277,0.01020678,97974.0,97968.0,0.20414829]
[1746668708604,0.01020699,97972.0,97968.0,0.2341772]
[1746668708746,0.20413161,97977.0,97968.0,0.2341772]
[1746668708949,0.21433808,97977.0,97968.0,0.58871805]
[1746668709142,0.00444929,97969.0,97968.0,0.58871805]
[1746668709595,0.00444929,97969.0,97968.0,0.58971805]
[1746668709793,0.00844929,97969.0,97968.0,0.58971805]
[1746668710238,0.00444929,97969.0,97968.0,0.58971805]
[1746668710537,0.00444929,97969.0,97968.0,0.59071805]
[1746668711166,0.00444929,97969.0,97968.0,0.58971805]
[1746668711364,0.00444929,97969.0,97968.0,0.58871805]
[1746668715959,0.00444929,97969.0,97968.0,0.61981805]
[1746668716300,0.00444929,97969.0,97968.0,0.72161217]
[1746668716728,0.00444929,97969.0,97968.0,0.70601217]
[1746668717076,0.00444929,97969.0,97968.0,0.69051217]
[1746668717248,0.00444929,97969.0,97968.0,0.69451217]
[1746668717249,0.00544929,97969.0,97968.0,0.69451217]
[1746668717453,0.00544929,97969.0,97968.0,1.19451217]
[1746668717656,0.00544929,97969.0,97968.0,1.22661217]
[1746668717858,0.00544929,97969.0,97968.0,1.21081217]
[1746668718066,0.00544929,97969.0,97968.0,1.2576705]
[1746668718504,0.00544929,97969.0,97968.0,1.13857638]
[1746668718660,0.01020606,97981.0,97968.0,1.13857638]
[1746668718661,0.00858607,97979.0,97978.0,0.35454085]
[1746668718860,0.0154,97979.0,97978.0,0.35454085]
[1746668719573,0.01020585,97983.0,97981.0,0.01454085]
[1746668719771,0.0162,97982.0,97981.0,0.01454085]
[1746668720693,0.0162,97982.0,97981.0,0.01654085]
[1746668721307,0.19859732,97983.0,97981.0,0.01654085]
[1746668721666,0.19859732,97983.0,97981.0,0.01854085]
[1746668721884,0.20880317,97983.0,97981.0,0.01654085]
[1746668722097,0.20411912,97982.0,97981.0,0.01654085]
[1746668722298,0.20411912,97982.0,97981.0,0.01854085]
[1746668722522,0.20411912,97982.0,97981.0,0.01654085]
[1746668722951,0.20411912,97982.0,97981.0,0.01854085]
[1746668723410,0.20411912,97982.0,97981.0,0.01654085]
[1746668723843,0.20411912,97982.0,97981.0,0.01854085]
[1746668724044,0.20411912,97982.0,97981.0,0.01654085]
[1746668724349,0.20411912,97982.0,97981.0,0.01854085]
[1746668724611,0.20411912,97982.0,97981.0,0.01654085]
[1746668725014,0.20411912,97982.0,97981.0,0.01754085]
[1746668725216,0.20411912,97982.0,97981.0,0.01454085]
[1746668725423,0.20412125,97981.0,97980.0,0.01454085]
[1746668726288,0.01020595,97982.0,97980.0,0.35454085]
[1746668726289,0.21432512,97982.0,97980.0,0.35454085]
[1746668727175,0.2041212,97981.0,97980.0,0.35654085]
[1746668727384,0.2041212,97981.0,97980.0,0.01754085]
[1746668727528,0.21432512,97982.0,97980.0,0.35754085]
[1746668727726,0.21432512,97982.0,97980.0,0.35654085]
[1746668727931,0.21432512,97982.0,97980.0,0.35754085]
[1746668728126,0.21432512,97982.0,97980.0,0.35654085]
[1746668728333,0.21432512,97982.0,97980.0,0.35454085]
[1746668728575,0.21432512,97982.0,97980.0,0.35654085]
[1746668728787,0.21432512,97982.0,97980.0,0.35554085]
[1746668728941,0.21432512,97982.0,97980.0,0.01554085]
[1746668729146,0.21432512,97982.0,97980.0,0.01654085]
[1746668729344,0.01020595,97982.0,97981.0,0.34]
[1746668729550,0.21432507,97982.0,97981.0,0.01454085]
[1746668730635,0.21432507,97982.0,97981.0,0.01554085]
[1746668731461,0.21432507,97982.0,97981.0,0.01654085]
[1746668732065,0.01020585,97983.0,97982.0,0.01454085]
[1746668732205,0.21432289,97983.0,97982.0,0.01454085]
[1746668732724,0.21432098,97984.0,97982.0,0.01454085]
[1746668732906,0.20411704,97983.0,97982.0,0.01454085]
[1746668733107,0.20411704,97983.0,97982.0,0.01554085]
[1746668733944,0.20411704,97983.0,97982.0,0.01654085]
[1746668734510,0.21432098,97984.0,97982.0,0.01654085]
[1746668734710,0.01020574,97984.0,97983.0,0.35454085]
[1746668734933,0.20411495,97984.0,97983.0,0.35454085]
[1746668735247,0.21432069,97984.0,97983.0,0.35454085]
[1746668735819,0.22942069,97984.0,97983.0,0.01454085]
[1746668736020,0.22805769,97984.0,97983.0,0.01454085]
[1746668736704,0.22805769,97984.0,97983.0,0.01554085]
[1746668736918,0.22805769,97984.0,97983.0,0.01654085]
[1746668739389,0.0151,97984.0,97983.0,0.01654085]
[1746668739751,0.004,97989.0,97988.0,0.55864747]
[1746668740610,0.0193,97989.0,97988.0,0.35454085]
[1746668740810,0.22340454,97989.0,97988.0,0.35454085]
[1746668741047,0.0203,97989.0,97988.0,0.35454085]
[1746668741219,0.0193,97989.0,97988.0,0.35454085]
[1746668741581,0.0193,97989.0,97988.0,0.55964747]
[1746668742383,0.0193,97989.0,97988.0,0.35654085]
[1746668742580,0.23980454,97989.0,97988.0,0.35654085]
[1746668743014,0.20788247,97989.0,97988.0,0.35654085]
[1746668747731,0.22050454,97989.0,97988.0,0.35654085]
[1746668748089,0.20410454,97989.0,97988.0,0.35654085]
[1746668749313,0.20410454,97989.0,97988.0,0.37567998]
[1746668751426,0.20410454,97989.0,97988.0,0.35654085]
[1746668752540,0.20410454,97989.0,97988.0,0.37567997]
[1746668753914,0.20410454,97989.0,97988.0,0.40721638]
[1746668753915,0.22020454,97989.0,97988.0,0.40721638]
[1746668754113,0.23640454,97989.0,97988.0,0.40721638]
[1746668754282,0.22020454,97989.0,97988.0,0.40721638]
[1746668754954,0.22020454,97989.0,97988.0,0.40621638]
[1746668755145,0.22120454,97989.0,97988.0,0.40621638]
[1746668755549,0.22120454,97989.0,97988.0,0.40521638]
[1746668755752,0.22220454,97989.0,97988.0,0.40521638]
[1746668756052,0.22120454,97989.0,97988.0,0.40521638]
[1746668756324,0.001,97989.0,97988.0,0.62386385]
[1746668756525,0.001,97989.0,97988.0,0.65416385]
[1746668756526,0.002,97989.0,97988.0,0.65416385]
[1746668756733,0.0152,98017.0,98008.0,0.35454085]
[1746668756937,0.0152,98025.0,98008.0,0.35454085]
[1746668757135,0.01020189,98021.0,98008.0,0.38624085]
[1746668757284,0.20403905,98021.0,98008.0,0.40537997]
[1746668757630,0.21424094,98021.0,98008.0,0.40537997]
[1746668757775,0.21424094,98021.0,98008.0,0.60944494]
[1746668757974,0.004,98029.0,98008.0,0.60944494]
[1746668758181,0.01020179,98022.0,98008.0,0.59634494]
[1746668758378,0.21423966,98022.0,98008.0,0.57987956]
[1746668758608,0.01020179,98022.0,98008.0,0.57987956]
[1746668758793,0.21423272,98025.0,98008.0,0.60967956]
[1746668758959,0.01020116,98028.0,98008.0,0.60967956]
[1746668759159,0.2040201,98030.0,98008.0,0.60967956]
[1746668759421,0.21422474,98028.0,98008.0,0.60967956]
[1746668759619,0.21422474,98028.0,98008.0,0.61067956]
[1746668759784,0.21422474,98028.0,98008.0,0.60967956]
[1746668760191,0.005,98009.0,98008.0,0.61867956]
[1746668760410,0.004,98009.0,98008.0,0.60967956]
[1746668760611,0.005,98009.0,98008.0,0.71847368]
[1746668760818,0.006,98009.0,98008.0,0.72647368]
[1746668761355,0.005,98009.0,98008.0,0.71947368]
[1746668761652,0.00590899,98009.0,98008.0,1.23047368]
[1746668761853,0.00590899,98009.0,98008.0,1.27655094]
[1746668762156,0.20397826,98050.0,98028.0,0.59006419]
[1746668762367,0.23057464,98051.0,98028.0,0.59006419]
[1746668762368,0.01019908,98048.0,98028.0,0.59006419]
[1746668762589,0.01019867,98052.0,98028.0,0.60920331]
[1746668763168,0.01019835,98055.0,98028.0,0.71099743]
[1746668763346,0.01019835,98055.0,98028.0,1.23702425]
[1746668763761,0.01019835,98055.0,98028.0,1.24202425]
[1746668763968,0.01019835,98055.0,98028.0,1.23702425]
[1746668764170,0.01019835,98055.0,98028.0,1.25053582]
[1746668764571,0.01019835,98055.0,98028.0,1.24653582]
[1746668764745,0.01019867,98052.0,98028.0,1.24653582]
[1746668764950,0.005,98029.0,98028.0,1.25553582]
[1746668765469,0.005,98029.0,98028.0,1.30161308]
[1746668765841,0.005,98029.0,98028.0,1.29910151]
[1746668766039,0.01019981,98041.0,98037.0,0.02474108]
[1746668766261,0.02519991,98040.0,98037.0,0.01454085]
[1746668766469,0.015,98040.0,98037.0,0.01454085]
[1746668766663,0.20399388,98043.0,98040.0,0.35454085]
[1746668766867,0.203995,98042.0,98040.0,0.35454085]
[1746668767242,0.0151,98041.0,98040.0,0.34]
[1746668767825,0.0151,98041.0,98040.0,0.00013462]
[1746668768159,0.0304,98041.0,98040.0,0.00013462]
[1746668768785,0.13319412,98041.0,98040.0,0.00013462]
[1746668769001,0.135744,98041.0,98040.0,0.00013462]
[1746668769880,0.138744,98041.0,98040.0,0.00013462]
[1746668773839,0.34274028,98041.0,98040.0,0.00013462]
[1746668774056,0.3401904,98041.0,98040.0,0.00013462]
[1746668776827,0.20408996,97996.0,97995.0,0.01899774]
[1746668776983,0.20408996,97996.0,97995.0,0.02654443]
[1746668777193,0.21908996,97996.0,97995.0,0.05229358]
[1746668777396,0.20408996,97996.0,97995.0,0.03329584]
[1746668777638,0.20408996,97996.0,97995.0,0.0076814]
[1746668777975,0.20408996,97996.0,97995.0,0.00013471]
[1746668778668,0.21948996,97996.0,97995.0,0.00013471]
[1746668778869,0.33768408,97996.0,97995.0,0.00013471]
[1746668779070,0.33868408,97996.0,97995.0,0.00913471]
[1746668779491,0.33768408,97996.0,97995.0,0.00013471]
[1746668779690,0.33868408,97996.0,97995.0,0.00013471]
[1746668780099,0.33768408,97996.0,97995.0,0.00013471]
[1746668780733,0.33768408,97996.0,97980.0,0.34]
[1746668780734,0.33768408,97996.0,97980.0,0.32453471]
[1746668780933,0.33768408,97996.0,97931.0,0.01421127]
[1746668780934,0.23563995,97972.0,97931.0,0.01421127]
[1746668781137,0.23563995,97972.0,97935.0,0.20421656]
[1746668781295,0.23563995,97972.0,97946.0,0.20419215]
[1746668781491,0.23563995,97972.0,97940.0,0.30833212]
[1746668781492,0.23563995,97972.0,97971.0,0.00413446]
[1746668782764,0.24063995,97972.0,97971.0,0.00413446]
[1746668782965,0.32113407,97972.0,97971.0,0.00413446]
[1746668783300,0.31193407,97972.0,97971.0,0.00413446]
[1746668783829,0.31093407,97972.0,97971.0,0.00413446]
[1746668784024,0.31593407,97972.0,97971.0,0.00413446]
[1746668784608,0.31093407,97972.0,97971.0,0.00413446]
[1746668784810,0.31593407,97972.0,97971.0,0.00413446]
[1746668785020,0.31093407,97972.0,97971.0,0.00413446]
[1746668785225,0.31593407,97972.0,97971.0,0.00413446]
[1746668786022,0.31093407,97972.0,97971.0,0.00413446]
[1746668786241,0.30593407,97972.0,97971.0,0.00413446]
[1746668786548,0.31593407,97972.0,97971.0,0.00413446]
[1746668787070,0.31093407,97972.0,97971.0,0.00413446]
[1746668787226,0.31593407,97972.0,97971.0,0.00413446]
[1746668787774,0.31093407,97972.0,97971.0,0.00413446]
[1746668787969,0.30593407,97972.0,97971.0,0.00413446]
[1746668788170,0.31093407,97972.0,97971.0,0.00413446]
[1746668788425,0.31593407,97972.0,97971.0,0.00413446]
[1746668788621,0.31093407,97972.0,97971.0,0.00413446]
[1746668788821,0.31593407,97972.0,97971.0,0.00413446]
[1746668789222,0.31093407,97972.0,97971.0,0.00413446]
[1746668789421,0.27900205,97972.0,97971.0,0.00413446]
[1746668789567,0.28500205,97972.0,97971.0,0.00413446]
[1746668789999,0.27900205,97972.0,97971.0,0.00413446]
[1746668790307,0.28500205,97972.0,97971.0,0.00413446]
[1746668790511,0.31610205,97972.0,97971.0,0.00413446]
[1746668790712,0.31010205,97972.0,97971.0,0.00413446]
[1746668791070,0.31110205,97972.0,97971.0,0.00413446]
[1746668791274,0.31610205,97972.0,97971.0,0.00413446]
[1746668791478,0.31110205,97972.0,97971.0,0.00413446]
[1746668792509,0.30060205,97972.0,97971.0,0.00413446]
[1746668792929,0.29460205,97972.0,97971.0,0.00413446]
[1746668793300,0.30060205,97972.0,97971.0,0.00413446]
[1746668793698,0.29460205,97972.0,97971.0,0.00413446]
[1746668793930,0.30060205,97972.0,97971.0,0.00413446]
[1746668794537,0.20418789,97949.0,97948.0,0.01454085]
[1746668794890,0.20418789,97949.0,97948.0,0.01499014]
[1746668795016,0.21439728,97949.0,97948.0,0.01499014]
[1746668795678,0.21539728,97949.0,97948.0,0.01499014]
[1746668796109,0.21439728,97949.0,97948.0,0.01499014]
[1746668796248,0.21639728,97949.0,97948.0,0.01499014]
[1746668796656,0.21539728,97949.0,97948.0,0.00044929]
[1746668797081,0.21639728,97949.0,97948.0,0.00044929]
[1746668802920,0.3181914,97949.0,97948.0,0.00044929]
[1746668803147,0.3342914,97949.0,97948.0,0.00044929]
[1746668803948,0.3332914,97949.0,97948.0,0.00044929]
[1746668804395,0.3479914,97949.0,97948.0,0.00044929]
[1746668804551,0.3489914,97949.0,97948.0,0.00044929]
[1746668805416,0.3499914,97949.0,97948.0,0.00044929]
[1746668805967,0.3489914,97949.0,97948.0,0.00044929]
[1746668806161,0.3519914,97949.0,97948.0,0.00044929]
[1746668806915,0.3489914,97949.0,97948.0,0.00044929]
[1746668807116,0.3509914,97949.0,97948.0,0.00044929]
[1746668807346,0.3499914,97949.0,97948.0,0.00044929]
[1746668808291,0.3519914,97949.0,97948.0,0.00044929]
[1746668808640,0.3559914,97949.0,97948.0,0.00044929]
[1746668809874,0.32404906,97949.0,97948.0,0.00044929]
[1746668819925,0.66404906,97949.0,97948.0,0.00044929]
[1746668820996,0.66004906,97949.0,97948.0,0.00044929]
[1746668821193,0.66304906,97949.0,97948.0,0.00144929]
[1746668821554,0.66904906,97949.0,97948.0,0.00144929]
[1746668833947,0.67904906,97949.0,97948.0,0.00144929]
[1746668834373,0.57712333,97932.0,97911.0,0.004]
[1746668834575,0.67891745,97932.0,97931.0,0.00409132]
[1746668835743,0.68291745,97932.0,97931.0,0.00409132]
[1746668835941,0.69676111,97932.0,97931.0,0.00509132]
[1746668836713,0.69276111,97932.0,97931.0,0.00509132]
[1746668837908,0.69476111,97932.0,97931.0,0.00509132]
[1746668840529,0.20426505,97912.0,97911.0,0.004]
[1746668840730,0.30861321,97912.0,97911.0,0.004]
[1746668840934,0.3292841,97912.0,97911.0,0.004]
[1746668841229,0.3443841,97912.0,97911.0,0.004]
[1746668842084,0.3647841,97912.0,97911.0,0.005]
[1746668842383,0.3667841,97912.0,97911.0,0.005]
[1746668845816,0.3503841,97912.0,97911.0,0.005]
[1746668848205,0.3662841,97912.0,97911.0,0.005]
[1746668848550,0.3503841,97912.0,97911.0,0.005]
[1746668850762,0.7058841,97912.0,97911.0,0.005]
[1746668852623,0.20430678,97892.0,97891.0,0.004]
[1746668852820,0.20430678,97892.0,97891.0,0.00404473]
[1746668852821,0.64865538,97892.0,97891.0,0.00404473]
[1746668853024,0.6461009,97892.0,97891.0,0.00404473]
[1746668853993,0.6461009,97892.0,97844.0,0.04219222]
[1746668853994,0.2044033,97846.0,97844.0,0.04219222]
[1746668854395,0.2044033,97846.0,97845.0,0.01793826]
[1746668854589,0.01022003,97847.0,97846.0,0.01454085]
[1746668854791,0.21462077,97847.0,97846.0,0.01454085]
[1746668855000,0.21462077,97847.0,97845.0,0.01454085]
[1746668855421,0.21475535,97847.0,97845.0,0.01454085]
[1746668855631,0.002,97846.0,97845.0,0.01454085]
[1746668855824,0.21675535,97847.0,97846.0,0.008]
[1746668856207,0.21875535,97847.0,97846.0,0.008]
[1746668856605,0.21875535,97847.0,97846.0,0.04501553]
[1746668856804,0.21875535,97847.0,97846.0,0.03047468]
[1746668857007,0.21675535,97847.0,97846.0,0.02247468]
[1746668857211,0.21675535,97847.0,97846.0,0.0327]
[1746668857812,0.21475535,97847.0,97846.0,0.0327]
[1746668858222,0.20439865,97848.0,97847.0,0.0328]
[1746668859285,0.20539865,97848.0,97847.0,0.0328]
[1746668860284,0.17343167,97848.0,97847.0,0.0328]
[1746668860424,0.17443167,97848.0,97847.0,0.0388]
[1746668860635,0.17443167,97848.0,97847.0,0.04219741]
[1746668862196,0.17443167,97848.0,97847.0,0.04230796]
[1746668863977,0.17443167,97848.0,97847.0,0.02610796]
[1746668864195,0.17443167,97848.0,97847.0,0.0226]
[1746668866265,0.27878075,97848.0,97847.0,0.006]
[1746668866466,0.27622579,97848.0,97847.0,0.006]
[1746668867485,0.20440074,97847.0,97846.0,0.00044697]
[1746668867747,0.30875008,97847.0,97846.0,0.00044697]
[1746668867959,0.30619486,97847.0,97846.0,0.00044697]
[1746668868711,0.30719486,97847.0,97846.0,0.00544697]
[1746668868913,0.30819486,97847.0,97846.0,0.00544697]
[1746668869164,0.20640074,97847.0,97846.0,0.02194697]
[1746668870321,0.20540074,97847.0,97846.0,0.01694697]
[1746668870523,0.20640074,97847.0,97846.0,0.03694697]
[1746668870764,0.20540074,97847.0,97846.0,0.0406051]
[1746668870951,0.002,97847.0,97846.0,0.25954878]
[1746668871107,0.001,97847.0,97846.0,0.25554878]
[1746668871305,0.01021878,97859.0,97857.0,0.0318]
[1746668871549,0.0102192,97855.0,97853.0,0.01454085]
[1746668871951,0.0102192,97855.0,97851.0,0.01021961]
[1746668871952,0.05,97857.0,97856.0,0.0318]
[1746668872384,0.25437986,97857.0,97856.0,0.0508857]
[1746668872727,0.21455888,97876.0,97869.0,0.21889565]
[1746668872924,0.0102169,97877.0,97869.0,0.24969565]
[1746668872925,0.21455559,97877.0,97869.0,0.24969565]
[1746668873126,0.002,97895.0,97869.0,0.58969565]
[1746668873338,0.002,97895.0,97869.0,0.61795559]
[1746668873540,0.002,97895.0,97894.0,0.20430261]
[1746668873809,0.002,97895.0,97894.0,0.0312]
[1746668874577,0.002,97895.0,97894.0,0.04574085]
[1746668874786,0.00513481,97895.0,97894.0,0.04874085]
[1746668875031,0.00513481,97895.0,97894.0,0.06782655]
[1746668875198,0.00313481,97895.0,97894.0,0.06782655]
[1746668875402,0.00213481,97895.0,97894.0,0.06482655]
[1746668875621,0.00213481,97895.0,97894.0,0.04574085]
[1746668875875,0.00213481,97895.0,97894.0,0.38574085]
[1746668876300,0.00313481,97895.0,97894.0,0.38574085]
[1746668876801,0.00313481,97895.0,97894.0,0.40582655]
[1746668877357,0.00313481,97895.0,97894.0,0.40482655]
[1746668877558,0.00413481,97895.0,97894.0,0.41182655]
[1746668877814,0.00413481,97895.0,97894.0,0.39274085]
[1746668877983,0.00313481,97895.0,97894.0,0.39274085]
[1746668878322,0.00213481,97895.0,97894.0,0.38574085]
[1746668878610,0.00413481,97895.0,97894.0,0.39274085]
[1746668878811,0.00313481,97895.0,97894.0,0.43863556]
[1746668878975,0.00413481,97895.0,97894.0,0.44263556]
[1746668879688,0.00413481,97895.0,97894.0,0.42733556]
[1746668879956,0.00313481,97895.0,97894.0,0.06443556]
[1746668880151,0.00313481,97895.0,97894.0,0.04989471]